[Event "Titled Tuesday Blitz November 15 Early 2022"]
[White "Gonzalez, Francisco Silva"]
[Black "Martin, Lewis"]
[WhiteFideId "1512285"]
[BlackFideId "410551"]
[WhiteElo "2159"]
[BlackElo "2145"]
[Result "1-0"]
[Round "09"]
[TimeControl "180+1"]
[Date "2022.11.16"]
[WhiteClock "0:00:24"]
[BlackClock "0:00:06"]

1. d4 {[%clk 0:02:50]}  d5 {[%clk 0:02:59]} 2. c4 {[%clk 0:02:50]}  e6 {[%clk 0:02:57]} 3. Nc3 {[%clk 0:02:50]}  Nf6 {[%clk 0:02:56]} 4. Bg5 {[%clk 0:02:49]}  c6 {[%clk 0:02:56]} 5. e3 {[%clk 0:02:49]}  Nbd7 {[%clk 0:02:55]} 6. a3 {[%clk 0:02:48]}  Be7 {[%clk 0:02:53]} 7. Nf3 {[%clk 0:02:48]}  O-O {[%clk 0:02:49]} 8. Qc2 {[%clk 0:02:48]}  a6 {[%clk 0:02:45]} 9. Rd1 {[%clk 0:02:47]}  dxc4 {[%clk 0:02:41]} 10. Bxc4 {[%clk 0:02:46]}  b5 {[%clk 0:02:41]} 11. Ba2 {[%clk 0:02:47]}  Bb7 {[%clk 0:02:42]} 12. Bb1 {[%clk 0:02:47]}  Re8 {[%clk 0:02:32]} 13. Ne5 {[%clk 0:02:46]}  Nf8 {[%clk 0:02:31]} 14. f4 {[%clk 0:02:45]}  Nd5 {[%clk 0:02:18]} 15. Nxd5 {[%clk 0:02:43]}  Bxg5 {[%clk 0:02:12]} 16. Nc3 {[%clk 0:02:30]}  Be7 {[%clk 0:02:02]} 17. O-O {[%clk 0:02:28]}  g6 {[%clk 0:01:51]} 18. b4 {[%clk 0:02:22]}  Rc8 {[%clk 0:01:46]} 19. Qb3 {[%clk 0:02:21]}  Qb6 {[%clk 0:01:42]} 20. Ne4 {[%clk 0:02:20]}  a5 {[%clk 0:01:40]} 21. Nc5 {[%clk 0:02:18]}  axb4 {[%clk 0:01:39]} 22. axb4 {[%clk 0:02:16]}  Red8 {[%clk 0:01:34]} 23. f5 {[%clk 0:02:11]}  Bxc5 {[%clk 0:01:21]} 24. dxc5 {[%clk 0:02:09]}  Qc7 {[%clk 0:01:21]} 25. Ng4 {[%clk 0:02:00]}  exf5 {[%clk 0:01:17]} 26. Nf6+ {[%clk 0:01:59]}  Kg7 {[%clk 0:01:13]} 27. Qb2 {[%clk 0:01:58]}  Kh6 {[%clk 0:01:07]} 28. e4 {[%clk 0:01:56]}  Rxd1 {[%clk 0:01:02]} 29. Ng8+ {[%clk 0:01:56]}  Kh5 {[%clk 0:01:00]} 30. Qe2+ {[%clk 0:01:52]}  Kg5 {[%clk 0:01:00]} 31. Rxd1 {[%clk 0:01:27]}  Re8 {[%clk 0:00:48]} 32. Rd6 {[%clk 0:01:22]}  f4 {[%clk 0:00:28]} 33. h4+ {[%clk 0:01:18]}  Kxh4 {[%clk 0:00:25]} 34. Qf3 {[%clk 0:01:14]}  Bc8 {[%clk 0:00:23]} 35. g3+ {[%clk 0:01:11]}  fxg3 {[%clk 0:00:18]} 36. Qf4+ {[%clk 0:01:11]}  Bg4 {[%clk 0:00:18]} 37. Nf6 {[%clk 0:00:59]}  h5 {[%clk 0:00:16]} 38. e5 {[%clk 0:00:48]}  Ne6 {[%clk 0:00:16]} 39. Qe3 {[%clk 0:00:42]}  Qa7 {[%clk 0:00:15]} 40. Nxe8 {[%clk 0:00:41]}  Qa1 {[%clk 0:00:15]} 41. Qe1 {[%clk 0:00:33]}  Qb2 {[%clk 0:00:15]} 42. Rd2 {[%clk 0:00:33]}  Qxb4 {[%clk 0:00:14]} 43. Rh2+ {[%clk 0:00:32]}  Kg5 {[%clk 0:00:14]} 44. Qxb4 {[%clk 0:00:32]}  gxh2+ {[%clk 0:00:13]} 45. Kxh2 {[%clk 0:00:33]}  Nf4 {[%clk 0:00:13]} 46. Qd2 {[%clk 0:00:32]}  Bf5 {[%clk 0:00:12]} 47. Kg3 {[%clk 0:00:31]}  h4+ {[%clk 0:00:11]} 48. Kf3 {[%clk 0:00:30]}  Bg4+ {[%clk 0:00:11]} 49. Ke4 {[%clk 0:00:31]}  f5+ {[%clk 0:00:11]} 50. Kd4 {[%clk 0:00:29]}  h3 {[%clk 0:00:09]} 51. Nf6 {[%clk 0:00:29]}  h2 {[%clk 0:00:09]} 52. Qxh2 {[%clk 0:00:27]}  Ne6+ {[%clk 0:00:09]} 53. Kc3 {[%clk 0:00:27]}  f4 {[%clk 0:00:08]} 54. Nxg4 {[%clk 0:00:26]}  Kxg4 {[%clk 0:00:08]} 55. Bxg6 {[%clk 0:00:26]}  Nxc5 {[%clk 0:00:06]} 56. Qg1+ {[%clk 0:00:23]}  Kh4 {[%clk 0:00:06]} 57. Qxc5 {[%clk 0:00:24]} 1-0


[Site "https://www.chess.com"]

[Event "Titled Tuesday Blitz November 15 Early 2022"]
[White "Gurevich, Dmitry"]
[Black "Aradhya, Garg"]
[WhiteFideId "2000407"]
[BlackFideId "25006746"]
[WhiteElo "2506"]
[BlackElo "2223"]
[Result "0-1"]
[Round "09"]
[TimeControl "180+1"]
[Date "2022.11.16"]
[WhiteClock "0:00:24"]
[BlackClock "0:01:02"]

1. d4 {[%clk 0:03:00]}  d5 {[%clk 0:02:59]} 2. c4 {[%clk 0:03:00]}  c6 {[%clk 0:03:00]} 3. Nf3 {[%clk 0:02:59]}  Nf6 {[%clk 0:03:00]} 4. Nc3 {[%clk 0:02:59]}  dxc4 {[%clk 0:02:59]} 5. a4 {[%clk 0:02:57]}  Bf5 {[%clk 0:02:59]} 6. Ne5 {[%clk 0:02:55]}  e6 {[%clk 0:02:59]} 7. f3 {[%clk 0:02:51]}  Bb4 {[%clk 0:02:59]} 8. Nxc4 {[%clk 0:02:46]}  O-O {[%clk 0:02:57]} 9. e4 {[%clk 0:02:36]}  Nxe4 {[%clk 0:02:55]} 10. fxe4 {[%clk 0:02:31]}  Qh4+ {[%clk 0:02:56]} 11. Kd2 {[%clk 0:02:16]}  Qxe4 {[%clk 0:02:55]} 12. Ne3 {[%clk 0:02:00]}  Rd8 {[%clk 0:02:19]} 13. Nxf5 {[%clk 0:01:58]}  exf5 {[%clk 0:02:19]} 14. Bd3 {[%clk 0:01:50]}  Rxd4 {[%clk 0:02:13]} 15. Kc2 {[%clk 0:01:46]}  Qxg2+ {[%clk 0:02:11]} 16. Bd2 {[%clk 0:01:26]}  Na6 {[%clk 0:01:55]} 17. Rg1 {[%clk 0:01:18]}  Qxh2 {[%clk 0:01:51]} 18. Qf3 {[%clk 0:00:58]}  Nc5 {[%clk 0:01:36]} 19. Be2 {[%clk 0:00:33]}  Rxd2+ {[%clk 0:01:03]} 20. Kxd2 {[%clk 0:00:31]}  Nb3+ {[%clk 0:01:03]} 21. Kc2 {[%clk 0:00:24]}  Nd4+ {[%clk 0:01:02]} 0-1


[Site "https://www.chess.com"]

[Event "Titled Tuesday Blitz November 15 Early 2022"]
[White "Harsha Bharathakoti"]
[Black "Atakhan, Abtin"]
[WhiteFideId "5078776"]
[BlackFideId "22502203"]
[WhiteElo "2523"]
[BlackElo "2298"]
[Result "1-0"]
[Round "09"]
[TimeControl "180+1"]
[Date "2022.11.15"]
[WhiteClock "0:00:18"]
[BlackClock "0:00:01"]

1. e4 {[%clk 0:03:00]}  c5 {[%clk 0:03:00]} 2. Nf3 {[%clk 0:03:00]}  d6 {[%clk 0:03:00]} 3. Bb5+ {[%clk 0:03:00]}  Nd7 {[%clk 0:03:01]} 4. O-O {[%clk 0:02:58]}  a6 {[%clk 0:02:59]} 5. Bd3 {[%clk 0:02:58]}  Ngf6 {[%clk 0:02:55]} 6. Re1 {[%clk 0:02:56]}  b5 {[%clk 0:02:46]} 7. c3 {[%clk 0:02:56]}  Bb7 {[%clk 0:02:40]} 8. Bc2 {[%clk 0:02:56]}  c4 {[%clk 0:02:40]} 9. a4 {[%clk 0:02:56]}  e6 {[%clk 0:02:36]} 10. d4 {[%clk 0:02:48]}  cxd3 {[%clk 0:02:35]} 11. Qxd3 {[%clk 0:02:48]}  Nc5 {[%clk 0:02:32]} 12. Qe2 {[%clk 0:02:47]}  bxa4 {[%clk 0:02:31]} 13. Rxa4 {[%clk 0:02:47]}  Be7 {[%clk 0:02:28]} 14. Rd4 {[%clk 0:02:40]}  Qc7 {[%clk 0:02:21]} 15. Rc4 {[%clk 0:02:33]}  Qd8 {[%clk 0:02:01]} 16. e5 {[%clk 0:02:17]}  dxe5 {[%clk 0:01:59]} 17. Nxe5 {[%clk 0:02:18]}  O-O {[%clk 0:01:56]} 18. Rh4 {[%clk 0:02:04]}  h6 {[%clk 0:01:16]} 19. Bxh6 {[%clk 0:01:17]}  gxh6 {[%clk 0:01:06]} 20. Qe3 {[%clk 0:01:16]}  Nfe4 {[%clk 0:00:36]} 21. Rg4+ {[%clk 0:01:07]}  Bg5 {[%clk 0:00:21]} 22. f4 {[%clk 0:00:38]}  f5 {[%clk 0:00:21]} 23. Rg3 {[%clk 0:00:38]}  Nxg3 {[%clk 0:00:19]} 24. Qxg3 {[%clk 0:00:39]}  Kh7 {[%clk 0:00:13]} 25. fxg5 {[%clk 0:00:32]}  Qxg5 {[%clk 0:00:13]} 26. Qf2 {[%clk 0:00:32]}  Rg8 {[%clk 0:00:12]} 27. g3 {[%clk 0:00:32]}  Ne4 {[%clk 0:00:12]} 28. Bxe4 {[%clk 0:00:33]}  Bxe4 {[%clk 0:00:13]} 29. Nd2 {[%clk 0:00:33]}  Bd5 {[%clk 0:00:12]} 30. c4 {[%clk 0:00:33]}  Bb7 {[%clk 0:00:11]} 31. Ndf3 {[%clk 0:00:32]}  Qg7 {[%clk 0:00:09]} 32. Nd4 {[%clk 0:00:30]}  Rae8 {[%clk 0:00:07]} 33. Qf4 {[%clk 0:00:26]}  Qg5 {[%clk 0:00:07]} 34. Ne2 {[%clk 0:00:25]}  Qxf4 {[%clk 0:00:05]} 35. Nxf4 {[%clk 0:00:26]}  Be4 {[%clk 0:00:05]} 36. Nd7 {[%clk 0:00:24]}  Kg7 {[%clk 0:00:03]} 37. Nh5+ {[%clk 0:00:25]}  Kf7 {[%clk 0:00:04]} 38. Ndf6 {[%clk 0:00:23]}  Rb8 {[%clk 0:00:03]} 39. Nxg8 {[%clk 0:00:24]}  Rxb2 {[%clk 0:00:01]} 40. Ngf6 {[%clk 0:00:21]}  Rg2+ {[%clk 0:00:02]} 41. Kf1 {[%clk 0:00:22]}  Bf3 {[%clk 0:00:02]} 42. Re3 {[%clk 0:00:21]}  Bc6 {[%clk 0:00:01]} 43. Nf4 {[%clk 0:00:18]}  Rxh2 {[%clk 0:00:02]} 44. Rxe6 {[%clk 0:00:19]}  Bf3 {[%clk 0:00:01]} 45. N6d5 {[%clk 0:00:18]}  Bxd5 {[%clk 0:00:01]} 46. cxd5 {[%clk 0:00:18]} 1-0


[Site "https://www.chess.com"]

[Event "Titled Tuesday Blitz November 15 Early 2022"]
[White "Howell, David W L"]
[Black "Novikova, Galina"]
[WhiteFideId "410608"]
[BlackFideId "4157095"]
[WhiteElo "2567"]
[BlackElo "1973"]
[Result "1-0"]
[Round "09"]
[TimeControl "180+1"]
[Date "2022.11.16"]
[WhiteClock "0:00:20"]
[BlackClock "0:00:04"]

1. a3 {[%clk 0:03:00]}  e6 {[%clk 0:02:59]} 2. Nf3 {[%clk 0:02:57]}  d5 {[%clk 0:03:00]} 3. g3 {[%clk 0:02:55]}  Nf6 {[%clk 0:03:00]} 4. Bg2 {[%clk 0:02:56]}  c5 {[%clk 0:03:01]} 5. O-O {[%clk 0:02:56]}  Nc6 {[%clk 0:03:01]} 6. d4 {[%clk 0:02:53]}  cxd4 {[%clk 0:02:58]} 7. Nxd4 {[%clk 0:02:54]}  Be7 {[%clk 0:02:59]} 8. c4 {[%clk 0:02:53]}  O-O {[%clk 0:02:56]} 9. cxd5 {[%clk 0:02:52]}  Nxd4 {[%clk 0:02:55]} 10. Qxd4 {[%clk 0:02:52]}  exd5 {[%clk 0:02:54]} 11. Nc3 {[%clk 0:02:52]}  Be6 {[%clk 0:02:55]} 12. Be3 {[%clk 0:02:36]}  b6 {[%clk 0:02:54]} 13. Rad1 {[%clk 0:02:26]}  Bc5 {[%clk 0:02:40]} 14. Qd3 {[%clk 0:02:22]}  Rc8 {[%clk 0:02:22]} 15. Bxc5 {[%clk 0:01:54]}  Rxc5 {[%clk 0:02:18]} 16. b4 {[%clk 0:01:54]}  Rc7 {[%clk 0:01:50]} 17. Nb5 {[%clk 0:01:50]}  Rd7 {[%clk 0:01:48]} 18. Rc1 {[%clk 0:01:49]}  Qe7 {[%clk 0:01:36]} 19. Rfd1 {[%clk 0:01:47]}  h6 {[%clk 0:01:35]} 20. e3 {[%clk 0:01:36]}  Rfd8 {[%clk 0:01:30]} 21. Nd4 {[%clk 0:01:35]}  Bg4 {[%clk 0:01:30]} 22. Nc6 {[%clk 0:01:25]}  Qd6 {[%clk 0:01:29]} 23. Nxd8 {[%clk 0:01:04]}  Bxd1 {[%clk 0:01:28]} 24. Nxf7 {[%clk 0:01:05]}  Kxf7 {[%clk 0:01:24]} 25. Rxd1 {[%clk 0:01:02]}  Qe5 {[%clk 0:01:21]} 26. Qb3 {[%clk 0:00:52]}  Kf8 {[%clk 0:01:00]} 27. Rd4 {[%clk 0:00:48]}  Rc7 {[%clk 0:00:55]} 28. Qd1 {[%clk 0:00:37]}  Rd7 {[%clk 0:00:38]} 29. Bf3 {[%clk 0:00:33]}  Qf5 {[%clk 0:00:37]} 30. Kg2 {[%clk 0:00:33]}  Kg8 {[%clk 0:00:35]} 31. h4 {[%clk 0:00:28]}  Rf7 {[%clk 0:00:26]} 32. Rf4 {[%clk 0:00:19]}  Qe5 {[%clk 0:00:25]} 33. Qd4 {[%clk 0:00:19]}  Qe6 {[%clk 0:00:22]} 34. Qc3 {[%clk 0:00:12]}  Qd6 {[%clk 0:00:14]} 35. Qc8+ {[%clk 0:00:12]}  Kh7 {[%clk 0:00:13]} 36. Qf5+ {[%clk 0:00:10]}  Kg8 {[%clk 0:00:13]} 37. Qc8+ {[%clk 0:00:10]}  Kh7 {[%clk 0:00:13]} 38. Qc2+ {[%clk 0:00:11]}  Kg8 {[%clk 0:00:13]} 39. Rd4 {[%clk 0:00:12]}  Qe5 {[%clk 0:00:10]} 40. Qc8+ {[%clk 0:00:12]}  Kh7 {[%clk 0:00:10]} 41. Qc2+ {[%clk 0:00:12]}  Kg8 {[%clk 0:00:10]} 42. Qd3 {[%clk 0:00:12]}  Kh8 {[%clk 0:00:05]} 43. Bxd5 {[%clk 0:00:10]}  Nxd5 {[%clk 0:00:05]} 44. Rxd5 {[%clk 0:00:11]}  Qf6 {[%clk 0:00:06]} 45. Rd8+ {[%clk 0:00:12]}  Rf8 {[%clk 0:00:05]} 46. Rxf8+ {[%clk 0:00:12]}  Qxf8 {[%clk 0:00:06]} 47. e4 {[%clk 0:00:13]}  Qf6 {[%clk 0:00:05]} 48. Qd5 {[%clk 0:00:13]}  Qf8 {[%clk 0:00:03]} 49. e5 {[%clk 0:00:13]}  Qe7 {[%clk 0:00:04]} 50. Qa8+ {[%clk 0:00:12]}  Kh7 {[%clk 0:00:04]} 51. Qe4+ {[%clk 0:00:13]}  Kh8 {[%clk 0:00:03]} 52. h5 {[%clk 0:00:14]}  Qe6 {[%clk 0:00:04]} 53. Qa8+ {[%clk 0:00:13]}  Kh7 {[%clk 0:00:04]} 54. Qe4+ {[%clk 0:00:14]}  Kh8 {[%clk 0:00:05]} 55. Kh2 {[%clk 0:00:15]}  a5 {[%clk 0:00:04]} 56. bxa5 {[%clk 0:00:15]}  bxa5 {[%clk 0:00:05]} 57. a4 {[%clk 0:00:16]}  Kg8 {[%clk 0:00:05]} 58. Qa8+ {[%clk 0:00:15]}  Kh7 {[%clk 0:00:05]} 59. Qe4+ {[%clk 0:00:16]}  Kh8 {[%clk 0:00:05]} 60. g4 {[%clk 0:00:17]}  Kg8 {[%clk 0:00:05]} 61. Kg3 {[%clk 0:00:17]}  Kh8 {[%clk 0:00:05]} 62. f3 {[%clk 0:00:17]}  Kg8 {[%clk 0:00:05]} 63. Qa8+ {[%clk 0:00:17]}  Kh7 {[%clk 0:00:05]} 64. Qxa5 {[%clk 0:00:18]}  Qa2 {[%clk 0:00:03]} 65. Qe1 {[%clk 0:00:17]}  Qxa4 {[%clk 0:00:03]} 66. Qe4+ {[%clk 0:00:17]}  Qxe4 {[%clk 0:00:02]} 67. fxe4 {[%clk 0:00:18]}  Kg8 {[%clk 0:00:03]} 68. e6 {[%clk 0:00:18]}  Kf8 {[%clk 0:00:02]} 69. Kf4 {[%clk 0:00:18]}  Ke7 {[%clk 0:00:03]} 70. Kf5 {[%clk 0:00:19]}  Ke8 {[%clk 0:00:03]} 71. Kg6 {[%clk 0:00:19]}  Ke7 {[%clk 0:00:04]} 72. Kxg7 {[%clk 0:00:19]}  Kxe6 {[%clk 0:00:04]} 73. Kxh6 {[%clk 0:00:20]} 1-0


[Site "https://www.chess.com"]

[Event "Titled Tuesday Blitz November 15 Early 2022"]
[White "Ilkhomi, Jaloliddin"]
[Black "Fernandez De La Vara, Arnaldo"]
[WhiteFideId "14700948"]
[BlackFideId "3518388"]
[WhiteElo "2045"]
[BlackElo "2387"]
[Result "0-1"]
[Round "09"]
[TimeControl "180+1"]
[Date "2022.11.16"]
[WhiteClock "0:00:03"]
[BlackClock "0:00:10"]

1. d4 {[%clk 0:02:57]}  c5 {[%clk 0:03:00]} 2. e3 {[%clk 0:02:55]}  Nf6 {[%clk 0:03:01]} 3. Nf3 {[%clk 0:02:55]}  d5 {[%clk 0:03:02]} 4. c3 {[%clk 0:02:55]}  e6 {[%clk 0:03:00]} 5. Bd3 {[%clk 0:02:55]}  Nc6 {[%clk 0:03:00]} 6. O-O {[%clk 0:02:55]}  Qc7 {[%clk 0:03:00]} 7. Nbd2 {[%clk 0:02:52]}  e5 {[%clk 0:02:56]} 8. dxe5 {[%clk 0:02:52]}  Nxe5 {[%clk 0:02:57]} 9. Nxe5 {[%clk 0:02:51]}  Qxe5 {[%clk 0:02:58]} 10. Re1 {[%clk 0:02:47]}  Bd6 {[%clk 0:02:57]} 11. f4 {[%clk 0:02:42]}  Qe7 {[%clk 0:02:40]} 12. e4 {[%clk 0:02:41]}  Bxf4 {[%clk 0:02:40]} 13. exd5 {[%clk 0:02:36]}  Be3+ {[%clk 0:02:40]} 14. Kh1 {[%clk 0:02:35]}  Ng4 {[%clk 0:02:31]} 15. Ne4 {[%clk 0:02:11]}  Qe5 {[%clk 0:00:49]} 16. g3 {[%clk 0:01:22]}  Bxc1 {[%clk 0:00:49]} 17. Nd6+ {[%clk 0:00:34]}  Kd7 {[%clk 0:00:48]} 18. Qa4+ {[%clk 0:00:26]}  Kxd6 {[%clk 0:00:48]} 19. Rxe5 {[%clk 0:00:26]}  Nxe5 {[%clk 0:00:42]} 20. Rxc1 {[%clk 0:00:25]}  Nxd3 {[%clk 0:00:42]} 21. Rf1 {[%clk 0:00:25]}  Ne5 {[%clk 0:00:32]} 22. b4 {[%clk 0:00:21]}  b6 {[%clk 0:00:29]} 23. bxc5+ {[%clk 0:00:20]}  bxc5 {[%clk 0:00:30]} 24. Re1 {[%clk 0:00:14]}  f6 {[%clk 0:00:29]} 25. Qf4 {[%clk 0:00:08]}  Re8 {[%clk 0:00:20]} 26. Qa4 {[%clk 0:00:07]}  Bb7 {[%clk 0:00:18]} 27. Qb5 {[%clk 0:00:06]}  Rab8 {[%clk 0:00:15]} 28. Kg1 {[%clk 0:00:03]}  Nf3+ {[%clk 0:00:14]} 29. Kf2 {[%clk 0:00:03]}  Nxe1 {[%clk 0:00:15]} 30. Qa5 {[%clk 0:00:03]}  Nd3+ {[%clk 0:00:15]} 31. Kf1 {[%clk 0:00:02]}  a6 {[%clk 0:00:16]} 32. Qb6+ {[%clk 0:00:02]}  Kxd5 {[%clk 0:00:15]} 33. Qc7 {[%clk 0:00:03]}  Kc4 {[%clk 0:00:15]} 34. Qf7+ {[%clk 0:00:03]}  Kxc3 {[%clk 0:00:10]} 35. Qb3+ {[%clk 0:00:04]}  Kd2 {[%clk 0:00:10]} 36. Qxd3+ {[%clk 0:00:01]}  Kxd3 {[%clk 0:00:10]} 37. Kf2 {[%clk 0:00:02]}  Re2+ {[%clk 0:00:10]} 38. Kf1 {[%clk 0:00:03]} 0-1


[Site "https://www.chess.com"]

[Event "Titled Tuesday Blitz November 15 Early 2022"]
[White "Indjic, Aleksandar"]
[Black "Boros, Denes"]
[WhiteFideId "911925"]
[BlackFideId "722340"]
[WhiteElo "2592"]
[BlackElo "2464"]
[Result "1-0"]
[Round "09"]
[TimeControl "180+1"]
[Date "2022.11.15"]
[WhiteClock "0:01:04"]
[BlackClock "0:00:10"]

1. d4 {[%clk 0:03:00]}  g6 {[%clk 0:03:00]} 2. h4 {[%clk 0:02:58]}  Nf6 {[%clk 0:02:59]} 3. Nc3 {[%clk 0:02:57]}  d5 {[%clk 0:02:58]} 4. Bf4 {[%clk 0:02:57]}  a6 {[%clk 0:02:50]} 5. e3 {[%clk 0:02:57]}  Bg7 {[%clk 0:02:47]} 6. h5 {[%clk 0:02:57]}  O-O {[%clk 0:02:37]} 7. hxg6 {[%clk 0:02:54]}  hxg6 {[%clk 0:02:38]} 8. Nf3 {[%clk 0:02:51]}  c5 {[%clk 0:02:38]} 9. Ne5 {[%clk 0:02:48]}  Nc6 {[%clk 0:02:33]} 10. Qd2 {[%clk 0:02:40]}  Nxe5 {[%clk 0:02:28]} 11. Bxe5 {[%clk 0:02:39]}  Ne4 {[%clk 0:02:19]} 12. Nxe4 {[%clk 0:02:37]}  dxe4 {[%clk 0:02:18]} 13. Bxg7 {[%clk 0:02:11]}  Kxg7 {[%clk 0:02:19]} 14. dxc5 {[%clk 0:02:09]}  Qxd2+ {[%clk 0:01:58]} 15. Kxd2 {[%clk 0:02:10]}  Rd8+ {[%clk 0:01:58]} 16. Kc3 {[%clk 0:02:09]}  Rd5 {[%clk 0:01:56]} 17. b4 {[%clk 0:01:59]}  a5 {[%clk 0:01:56]} 18. Bc4 {[%clk 0:01:53]}  axb4+ {[%clk 0:01:50]} 19. Kxb4 {[%clk 0:01:54]}  Rg5 {[%clk 0:01:36]} 20. Rad1 {[%clk 0:01:35]}  b6 {[%clk 0:01:05]} 21. cxb6 {[%clk 0:01:31]}  Rb8 {[%clk 0:01:05]} 22. a4 {[%clk 0:01:27]}  Rxb6+ {[%clk 0:01:03]} 23. Bb5 {[%clk 0:01:27]}  Rxg2 {[%clk 0:01:01]} 24. Rd2 {[%clk 0:01:27]}  g5 {[%clk 0:00:58]} 25. c4 {[%clk 0:01:27]}  g4 {[%clk 0:00:58]} 26. Rhd1 {[%clk 0:01:21]}  g3 {[%clk 0:00:46]} 27. fxg3 {[%clk 0:01:21]}  Rxg3 {[%clk 0:00:46]} 28. Re1 {[%clk 0:01:21]}  f5 {[%clk 0:00:41]} 29. c5 {[%clk 0:01:21]}  Rh6 {[%clk 0:00:40]} 30. c6 {[%clk 0:01:21]}  Rh8 {[%clk 0:00:32]} 31. a5 {[%clk 0:01:19]}  Rg6 {[%clk 0:00:26]} 32. Kc5 {[%clk 0:01:14]}  Re6 {[%clk 0:00:25]} 33. Kb6 {[%clk 0:01:13]}  Re5 {[%clk 0:00:20]} 34. Red1 {[%clk 0:01:10]}  Be6 {[%clk 0:00:13]} 35. Rd8 {[%clk 0:01:09]}  Rh2 {[%clk 0:00:13]} 36. Rb1 {[%clk 0:01:07]}  f4 {[%clk 0:00:11]} 37. exf4 {[%clk 0:01:07]}  Rf5 {[%clk 0:00:11]} 38. a6 {[%clk 0:01:07]}  e3 {[%clk 0:00:10]} 39. a7 {[%clk 0:01:07]}  Ra2 {[%clk 0:00:11]} 40. Rg1+ {[%clk 0:01:04]}  Kf6 {[%clk 0:00:10]} 41. Rf8+ {[%clk 0:01:04]} 1-0


[Site "https://www.chess.com"]

[Event "Titled Tuesday Blitz November 15 Early 2022"]
[White "Ivic, Velimir"]
[Black "Mgeladze, Tamaz"]
[WhiteFideId "950122"]
[BlackFideId "13601202"]
[WhiteElo "2625"]
[BlackElo "2288"]
[Result "1-0"]
[Round "09"]
[TimeControl "180+1"]
[Date "2022.11.15"]
[WhiteClock "0:00:26"]
[BlackClock "0:00:40"]

1. d4 {[%clk 0:02:56]}  Nf6 {[%clk 0:03:00]} 2. c4 {[%clk 0:02:56]}  g6 {[%clk 0:03:00]} 3. Nc3 {[%clk 0:02:57]}  Bg7 {[%clk 0:03:01]} 4. e4 {[%clk 0:02:57]}  d6 {[%clk 0:03:01]} 5. Be2 {[%clk 0:02:57]}  O-O {[%clk 0:03:02]} 6. Be3 {[%clk 0:02:58]}  c5 {[%clk 0:03:02]} 7. d5 {[%clk 0:02:57]}  a6 {[%clk 0:03:00]} 8. a4 {[%clk 0:02:48]}  e6 {[%clk 0:03:00]} 9. Nf3 {[%clk 0:02:47]}  exd5 {[%clk 0:03:00]} 10. cxd5 {[%clk 0:02:46]}  Bg4 {[%clk 0:03:00]} 11. Nd2 {[%clk 0:02:44]}  Bxe2 {[%clk 0:03:01]} 12. Qxe2 {[%clk 0:02:45]}  Nbd7 {[%clk 0:03:01]} 13. O-O {[%clk 0:02:41]}  Re8 {[%clk 0:03:01]} 14. h3 {[%clk 0:02:38]}  Rc8 {[%clk 0:02:56]} 15. a5 {[%clk 0:02:23]}  Qc7 {[%clk 0:02:57]} 16. Ra4 {[%clk 0:02:10]}  h5 {[%clk 0:02:53]} 17. Bf4 {[%clk 0:01:58]}  Ne5 {[%clk 0:02:47]} 18. Bg3 {[%clk 0:01:49]}  Kh7 {[%clk 0:02:33]} 19. f4 {[%clk 0:01:42]}  Ned7 {[%clk 0:02:34]} 20. Qd3 {[%clk 0:01:41]}  b5 {[%clk 0:02:26]} 21. axb6 {[%clk 0:01:39]}  Nxb6 {[%clk 0:02:18]} 22. Rxa6 {[%clk 0:01:36]}  c4 {[%clk 0:02:19]} 23. Qc2 {[%clk 0:01:34]}  Nbd7 {[%clk 0:02:19]} 24. Rc6 {[%clk 0:01:25]}  Qb8 {[%clk 0:02:20]} 25. Nxc4 {[%clk 0:01:17]}  Rxc6 {[%clk 0:01:39]} 26. dxc6 {[%clk 0:01:18]}  Nc5 {[%clk 0:01:40]} 27. e5 {[%clk 0:01:10]}  dxe5 {[%clk 0:01:31]} 28. fxe5 {[%clk 0:01:11]}  Nfe4 {[%clk 0:01:32]} 29. Nxe4 {[%clk 0:01:08]}  Nxe4 {[%clk 0:01:32]} 30. Qxe4 {[%clk 0:01:09]}  Qb3 {[%clk 0:01:28]} 31. Rxf7 {[%clk 0:00:56]}  Qxg3 {[%clk 0:01:26]} 32. c7 {[%clk 0:00:47]}  Kh8 {[%clk 0:01:16]} 33. Qf4 {[%clk 0:00:31]}  Qe1+ {[%clk 0:00:58]} 34. Kh2 {[%clk 0:00:32]}  Qe2 {[%clk 0:00:59]} 35. Rxg7 {[%clk 0:00:30]}  Kxg7 {[%clk 0:00:57]} 36. Nd6 {[%clk 0:00:30]}  Rc8 {[%clk 0:00:40]} 37. Nxc8 {[%clk 0:00:29]}  Qd2 {[%clk 0:00:40]} 38. Qxd2 {[%clk 0:00:26]} 1-0


[Site "https://www.chess.com"]

[Event "Titled Tuesday Blitz November 15 Early 2022"]
[White "Jarmula, Lukasz"]
[Black "Ozen, Bahadir"]
[WhiteFideId "1160664"]
[BlackFideId "6337058"]
[WhiteElo "2357"]
[BlackElo "2503"]
[Result "1/2-1/2"]
[Round "09"]
[TimeControl "180+1"]
[Date "2022.11.15"]
[WhiteClock "0:02:42"]
[BlackClock "0:03:03"]

1. b3 {[%clk 0:03:00]}  d5 {[%clk 0:02:59]} 2. Bb2 {[%clk 0:03:00]}  Bf5 {[%clk 0:03:00]} 3. d3 {[%clk 0:02:59]}  e6 {[%clk 0:03:00]} 4. Nd2 {[%clk 0:02:59]}  h6 {[%clk 0:03:01]} 5. g3 {[%clk 0:03:00]}  Bh7 {[%clk 0:03:01]} 6. Bg2 {[%clk 0:03:00]}  Nf6 {[%clk 0:03:01]} 7. e4 {[%clk 0:03:00]}  Be7 {[%clk 0:03:02]} 8. Nh3 {[%clk 0:02:58]}  O-O {[%clk 0:03:01]} 9. O-O {[%clk 0:02:57]}  a5 {[%clk 0:03:01]} 10. a4 {[%clk 0:02:56]}  Na6 {[%clk 0:03:01]} 11. Qe2 {[%clk 0:02:54]}  Nb4 {[%clk 0:03:01]} 12. Rac1 {[%clk 0:02:53]}  Na2 {[%clk 0:03:01]} 13. Ra1 {[%clk 0:02:51]}  Nb4 {[%clk 0:03:02]} 14. Rac1 {[%clk 0:02:42]}  Na2 {[%clk 0:03:02]} 15. Ra1 {[%clk 0:02:42]}  Nb4 {[%clk 0:03:03]} 1/2-1/2


[Site "https://www.chess.com"]